[Event "Najdorf Memorial-B 2022"]
[Site "Warsaw"]
[Date "2022.07.16"]
[Round "8.7"]
[White "Bartoszczuk, Adam"]
[Black "Dysko, Michal"]
[Result "0-1"]
[ECO "B40"]
[WhiteElo "1596"]
[BlackElo "1376"]
[Annotator "NA"]
[PlyCount "78"]
[EventDate "2022.07.09"]
[EventType "swiss"]
[EventCountry "POL"]
[SourceTitle "playchess.com"]
[Source "ChessBase"]
[SourceQuality "1"]
[TimeControl "40/5400+30:1800+30"]

1. e4 {[%emt 0:00:02]} c5 {[%emt 0:04:55]} 2. Nf3 {[%emt 0:00:05]} e6 {[%emt 0:00:06]} 3. d4 {[%emt 0:00:04]} cxd4 {[%emt 0:00:05]} 4. Nxd4 {[%emt 0:00:02]} Nf6 {[%emt 0:00:20]} 5. Nc3 {[%emt 0:00:24]} Nc6 {[%emt 0:00:07]} 6. Nxc6 {[%emt 0:00:21]} bxc6 {[%emt 0:00:07]} 7. e5 {[%emt 0:00:06]} Nd5 {[%emt 0:00:05]} 8. Ne4 {[%emt 0:00:07]} Qc7 {[%emt 0:00:23]} 9. f4 {[%emt 0:00:17]} Qb6 {[%emt 0:00:23]} 10. a3 {[%emt 0:00:58]} Ne3 {[%emt 0:01:25]} 11. Qd3 {[%emt 0:00:31]} Nxf1 {[%emt 0:00:10]} 12. Rxf1 {[%emt 0:00:06]} Ba6 {[%emt 0:00:06]} 13. c4 {[%emt 0:00:06]} f5 {[%emt 0:00:08]} 14. Nd6+ {[%emt 0:10:26]} Bxd6 {[%emt 0:00:02]} 15. exd6 {[%emt 0:00:12]} c5 {[%emt 0:00:02]} 16. Rb1 {[%emt 0:14:54]} Bb7 {[%emt 0:00:25]} 17. Qc3 {[%emt 0:05:15]} Qxd6 {[%emt 0:02:21]} 18. Be3 {[%emt 0:01:06]} Qe7 {[%emt 0:02:34]} 19. b4 {[%emt 0:07:00]} Be4 {[%emt 0:01:58]} 20. Rd1 {[%emt 0:01:44]} cxb4 {[%emt 0:12:24]} 21. axb4 {[%emt 0:00:08]} Rg8 {[%emt 0:00:20]} 22. Qd2 {[%emt 0:05:43]} a6 {[%emt 0:05:07]} 23. Bc5 {[%emt 0:01:50]} Qd8 {[%emt 0:01:43]} 24. Qd6 {[%emt 0:09:53]} Bc6 {[%emt 0:04:38]} 25. Rf2 {[%emt 0:06:23]} Kf7 {[%emt 0:03:03]} 26. Qd3 {[%emt 0:14:04]} Re8 {[%emt 0:07:29]} 27. Kf1 {[%emt 0:05:06]} d5 {[%emt 0:04:05]} 28. Qh3 {[%emt 0:03:01]} Kg8 {[%emt 0:02:59]} 29. Qe3 {[%emt 0:07:01]} Qc8 {[%emt 0:03:33]} 30. cxd5 {[%emt 0:02:56]} Bxd5 {[%emt 0:00:31]} 31. Rc1 {[%emt 0:01:38]} Qb7 {[%emt 0:02:28]} 32. g3 {[%emt 0:02:10]} a5 {[%emt 0:03:38]} 33. Bb6 {[%emt 0:02:04]} axb4 {[%emt 0:04:13]} 34. Rb2 {[%emt 0:00:31]} Qa6+ {[%emt 0:01:40]} 35. Kg1 {[%emt 0:00:10]} b3 {[%emt 0:04:54]} 36. Bd4 {[%emt 0:01:12]} Rec8 {[%emt 0:04:22]} 37. Re1 {[%emt 0:00:44]} Rc2 {[%emt 0:02:23]} 38. Rxb3 {[%emt 0:00:34]} Rg2+ {[%emt 0:00:48]} 39. Kh1 {[%emt 0:00:12]} Rxg3+ {[%emt 0:00:47]} 0-1

[Event "Najdorf Memorial-B 2022"]
[Site "Warsaw"]
[Date "2022.07.16"]
[Round "8.8"]
[White "Terkiewicz, Bruno"]
[Black "Poniewierski, Piotr"]
[Result "0-1"]
[ECO "B41"]
[WhiteElo "1473"]
[BlackElo "1747"]
[Annotator "NA"]
[PlyCount "100"]
[EventDate "2022.07.09"]
[EventType "swiss"]
[EventCountry "POL"]
[SourceTitle "playchess.com"]
[Source "ChessBase"]
[SourceQuality "1"]
[TimeControl "40/5400+30:1800+30"]

1. e4 {[%emt 0:00:01]} c5 {[%emt 0:00:21]} 2. Nf3 {[%emt 0:00:03]} e6 {[%emt 0:00:19]} 3. d4 {[%emt 0:00:05]} cxd4 {[%emt 0:00:09]} 4. Nxd4 {[%emt 0:00:03]} a6 {[%emt 0:00:48]} 5. c4 {[%emt 0:00:04]} Nf6 {[%emt 0:00:22]} 6. Nc3 {[%emt 0:00:02]} Qc7 {[%emt 0:00:14]} 7. Qe2 {[%emt 0:00:06]} d6 {[%emt 0:00:35]} 8. g3 {[%emt 0:00:06]} Be7 {[%emt 0:06:31]} 9. Bg2 {[%emt 0:00:05]} Bd7 {[%emt 0:01:12]} 10. Be3 {[%emt 0:02:22]} Nc6 {[%emt 0:00:40]} 11. Rc1 {[%emt 0:00:05]} Qa5 {[%emt 0:07:54]} 12. O-O {[%emt 0:18:04]} Rc8 {[%emt 0:06:14]} 13. f4 {[%emt 0:08:13]} Nxd4 {[%emt 0:06:20]} 14. Bxd4 {[%emt 0:00:02]} e5 {[%emt 0:01:04]} 15. fxe5 {[%emt 0:00:09]} dxe5 {[%emt 0:00:14]} 16. Be3 {[%emt 0:00:14]} O-O {[%emt 0:08:04]} 17. Nd5 {[%emt 0:13:33]} Nxd5 {[%emt 0:02:13]} 18. exd5 {[%emt 0:00:28]} Bc5 {[%emt 0:13:59]} 19. Bxc5 {[%emt 0:02:46]} Qxc5+ {[%emt 0:00:45]} 20. Kh1 {[%emt 0:00:11]} f6 {[%emt 0:02:24]} 21. Qf2 {[%emt 0:09:46]} a5 {[%emt 0:06:49]} 22. h3 {[%emt 0:18:31]} Qxf2 {[%emt 0:00:49]} 23. Rxf2 {[%emt 0:02:03]} b6 {[%emt 0:01:38]} 24. b3 {[%emt 0:00:36]} Rc5 {[%emt 0:04:26]} 25. Rfc2 {[%emt 0:04:37]} Rfc8 {[%emt 0:01:40]} 26. Bf1 {[%emt 0:00:35]} Bf5 {[%emt 0:02:20]} 27. Rc3 {[%emt 0:00:19]} Kf8 {[%emt 0:01:37]} 28. Kg1 {[%emt 0:00:18]} b5 {[%emt 0:06:55]} 29. Kf2 {[%emt 0:01:31]} b4 {[%emt 0:02:24]} 30. Rf3 {[%emt 0:01:32]} Be4 {[%emt 0:00:17]} 31. Re3 {[%emt 0:00:52]} Bxd5 {[%emt 0:01:46]} 32. Rd1 {[%emt 0:00:30]} Be6 {[%emt 0:02:02]} 33. Rd6 {[%emt 0:00:26]} Ke7 {[%emt 0:01:20]} 34. Red3 {[%emt 0:00:14]} R5c6 {[%emt 0:03:34]} 35. Rxc6 {[%emt 0:00:23]} Rxc6 {[%emt 0:00:12]} 36. Ke3 {[%emt 0:00:17]} Rd6 {[%emt 0:01:42]} 37. g4 {[%emt 0:02:31]} g6 {[%emt 0:01:13]} 38. Ke4 {[%emt 0:03:43]} Rxd3 {[%emt 0:00:41]} 39. Bxd3 {[%emt 0:00:19]} Kd6 {[%emt 0:00:41]} 40. Be2 {[%emt 0:00:00]} Bc8 {[%emt 0:00:00]} 41. Ke3 {[%emt 0:01:06]} f5 {[%emt 0:03:27]} 42. Bf3 {[%emt 0:01:43]} e4 {[%emt 0:02:14]} 43. Be2 {[%emt 0:00:38]} Ke5 {[%emt 0:00:07]} 44. c5 {[%emt 0:00:08]} f4+ {[%emt 0:00:30]} 45. Kd2 {[%emt 0:00:04]} Kd4 {[%emt 0:01:23]} 46. c6 {[%emt 0:00:05]} f3 {[%emt 0:03:26]} 47. Bc4 {[%emt 0:00:14]} h5 {[%emt 0:03:21]} 48. Bf7 {[%emt 0:00:29]} hxg4 {[%emt 0:00:26]} 49. hxg4 {[%emt 0:00:05]} Bxg4 {[%emt 0:01:07]} 50. Bxg6 {[%emt 0:00:08]} f2 {[%emt 0:00:30]} 0-1

[Event "Najdorf Memorial-B 2022"]
[Site "Warsaw"]
[Date "2022.07.16"]
[Round "8.9"]
[White "Przybylski, Jan"]
[Black "Trochimczuk, Szymon"]
[Result "1/2-1/2"]
[ECO "B18"]
[WhiteElo "1685"]
[BlackElo "1480"]
[Annotator "NA"]
[PlyCount "77"]
[EventDate "2022.07.09"]
[EventType "swiss"]
[EventCountry "POL"]
[SourceTitle "playchess.com"]
[Source "ChessBase"]
[SourceQuality "1"]
[TimeControl "40/5400+30:1800+30"]

1. e4 {[%emt 0:00:02]} c6 {[%emt 0:00:02]} 2. d4 {[%emt 0:00:05]} d5 {[%emt 0:00:04]} 3. Nc3 {[%emt 0:00:04]} dxe4 {[%emt 0:00:03]} 4. Nxe4 {[%emt 0:00:09]} Bf5 {[%emt 0:00:05]} 5. Ng3 {[%emt 0:00:07]} Bg6 {[%emt 0:00:05]} 6. h4 {[%emt 0:00:22]} h6 7. Nf3 {[%emt 0:00:27]} e6 {[%emt 0:00:15]} 8. Ne5 Bh7 9. Be3 Nd7 10. Nc4 {[%emt 0:09:54]} Ngf6 {[%emt 0:07:23]} 11. Be2 {[%emt 0:03:55]} Nb6 {[%emt 0:05:34]} 12. c3 Nxc4 {[%emt 0:07:49]} 13. Bxc4 {[%emt 0:10:46]} Bd6 14. Qf3 Qe7 {[%emt 0:05:15]} 15. O-O {[%emt 0:04:00]} O-O {[%emt 0:02:04]} 16. Rfe1 {[%emt 0:00:41]} Nd5 {[%emt 0:03:19]} 17. Bxd5 {[%emt 0:09:31]} cxd5 {[%emt 0:00:30]} 18. Bf4 a5 {[%emt 0:10:46]} 19. Nh5 {[%emt 0:05:16]} Bxf4 {[%emt 0:05:29]} 20. Qxf4 {[%emt 0:00:32]} Bg6 {[%emt 0:01:43]} 21. Qg4 {[%emt 0:00:50]} Bxh5 {[%emt 0:01:14]} 22. Qxh5 {[%emt 0:00:09]} Qf6 {[%emt 0:04:03]} 23. Re3 {[%emt 0:00:47]} b5 {[%emt 0:05:52]} 24. Rae1 {[%emt 0:01:09]} Kh7 {[%emt 0:10:13]} 25. Qg4 {[%emt 0:03:44]} g6 26. Rg3 b4 {[%emt 0:01:00]} 27. h5 {[%emt 0:03:38]} g5 {[%emt 0:05:02]} 28. Rf3 {[%emt 0:01:48]} Qg7 29. Rg3 {[%emt 0:01:42]} Qf6 {[%emt 0:00:37]} 30. Rf3 {[%emt 0:05:48]} Qg7 {[%emt 0:00:05]} 31. Qg3 {[%emt 0:00:19]} bxc3 {[%emt 0:01:22]} 32. bxc3 {[%emt 0:00:17]} Rfb8 {[%emt 0:05:02]} 33. Qc7 {[%emt 0:00:54]} Kg8 {[%emt 0:00:07]} 34. Qd7 {[%emt 0:01:46]} Rd8 {[%emt 0:00:45]} 35. Qe7 {[%emt 0:01:15]} Re8 {[%emt 0:00:07]} 36. Qd7 {[%emt 0:02:56]} Red8 37. Qa4 Rdb8 {[%emt 0:01:48]} 38. Rg3 Qf6 {[%emt 0:00:30]} 39. Rf3 1/2-1/2

[Event "Najdorf Memorial-B 2022"]
[Site "Warsaw"]
[Date "2022.07.16"]
[Round "8.10"]
[White "Nocek, Dominik"]
[Black "Chiszko, Oskar"]
[Result "1/2-1/2"]
[ECO "B91"]
[WhiteElo "1682"]
[BlackElo "1446"]
[Annotator "NA"]
[PlyCount "50"]
[EventDate "2022.07.09"]
[EventType "swiss"]
[EventCountry "POL"]
[SourceTitle "playchess.com"]
[Source "ChessBase"]
[SourceQuality "1"]
[TimeControl "40/5400+30:1800+30"]

1. e4 {[%emt 0:00:02]} c5 {[%emt 0:00:06]} 2. Nf3 {[%emt 0:00:17]} d6 {[%emt 0:00:07]} 3. d4 {[%emt 0:00:06]} cxd4 {[%emt 0:00:08]} 4. Nxd4 {[%emt 0:00:07]} Nf6 {[%emt 0:00:05]} 5. Nc3 {[%emt 0:00:08]} a6 {[%emt 0:00:08]} 6. g3 {[%emt 0:00:08]} e5 {[%emt 0:00:36]} 7. Nde2 {[%emt 0:00:10]} Be7 {[%emt 0:00:27]} 8. Bg2 {[%emt 0:00:16]} O-O {[%emt 0:00:31]} 9. O-O {[%emt 0:00:39]} b5 {[%emt 0:00:25]} 10. Nd5 {[%emt 0:03:10]} Nbd7 {[%emt 0:00:36]} 11. Nec3 {[%emt 0:05:54]} Nxd5 {[%emt 0:00:19]} 12. Nxd5 {[%emt 0:00:15]} Nf6 {[%emt 0:00:10]} 13. a4 {[%emt 0:08:54]} Bb7 {[%emt 0:00:28]} 14. axb5 {[%emt 0:00:52]} axb5 {[%emt 0:01:04]} 15. Rxa8 {[%emt 0:00:50]} Bxa8 {[%emt 0:00:07]} 16. Nxe7+ {[%emt 0:01:20]} Qxe7 {[%emt 0:00:11]} 17. Bg5 {[%emt 0:00:14]} h6 {[%emt 0:03:04]} 18. Bxf6 {[%emt 0:00:50]} Qxf6 {[%emt 0:00:08]} 19. Qd3 {[%emt 0:07:56]} Bc6 {[%emt 0:00:58]} 20. Ra1 {[%emt 0:08:52]} Qe7 {[%emt 0:00:55]} 21. h3 {[%emt 0:07:42]} Qc7 {[%emt 0:01:28]} 22. Rd1 {[%emt 0:02:57]} Rd8 {[%emt 0:00:22]} 23. Qa3 {[%emt 0:06:08]} g6 {[%emt 0:01:16]} 24. Kh2 {[%emt 0:05:24]} Kg7 {[%emt 0:01:26]} 25. Qb4 {[%emt 0:04:59]} f5 {[%emt 0:03:03]} 1/2-1/2

[Event "Najdorf Memorial-B 2022"]
[Site "Warsaw"]
[Date "2022.07.16"]
[Round "8.11"]
[White "Szymkiewicz, Witold"]
[Black "Jaszczuk, Piotr"]
[Result "1-0"]
[ECO "A45"]
[WhiteElo "1642"]
[BlackElo "1389"]
[Annotator "NA"]
[PlyCount "63"]
[EventDate "2022.07.09"]
[EventType "swiss"]
[EventCountry "POL"]
[SourceTitle "playchess.com"]
[Source "ChessBase"]
[SourceQuality "1"]
[TimeControl "40/5400+30:1800+30"]

1. d4 {[%emt 0:00:01]} Nf6 {[%emt 0:00:02]} 2. Bf4 {[%emt 0:00:27]} e6 {[%emt 0:00:27]} 3. e3 {[%emt 0:00:32]} b6 {[%emt 0:01:37]} 4. Nd2 {[%emt 0:01:16]} Bb7 {[%emt 0:00:47]} 5. Ngf3 {[%emt 0:00:56]} c5 {[%emt 0:00:13]} 6. c3 {[%emt 0:00:14]} cxd4 {[%emt 0:00:20]} 7. exd4 {[%emt 0:00:15]} d6 {[%emt 0:00:26]} 8. Bd3 {[%emt 0:01:35]} Nbd7 {[%emt 0:00:31]} 9. Nc4 {[%emt 0:02:28]} Qc7 {[%emt 0:00:42]} 10. O-O {[%emt 0:04:46]} Be7 {[%emt 0:01:30]} 11. Re1 {[%emt 0:04:50]} O-O {[%emt 0:02:30]} 12. Ncd2 {[%emt 0:05:43]} Rfe8 {[%emt 0:01:59]} 13. Ng5 {[%emt 0:06:12]} Bf8 {[%emt 0:02:26]} 14. Re3 {[%emt 0:10:09]} h6 {[%emt 0:05:01]} 15. Nge4 {[%emt 0:04:37]} Nd5 {[%emt 0:02:10]} 16. Bxh6 {[%emt 0:13:19]} Nxe3 {[%emt 0:15:11]} 17. Bxe3 {[%emt 0:00:10]} f5 {[%emt 0:00:46]} 18. Ng5 {[%emt 0:01:10]} Nf6 {[%emt 0:00:50]} 19. Qb3 {[%emt 0:05:03]} Nd5 {[%emt 0:08:56]} 20. Ndf3 {[%emt 0:05:34]} Qd7 {[%emt 0:03:37]} 21. Bd2 {[%emt 0:01:47]} Be7 {[%emt 0:06:18]} 22. Bb5 {[%emt 0:01:31]} Bc6 {[%emt 0:00:51]} 23. Bxc6 {[%emt 0:00:09]} Qxc6 {[%emt 0:00:24]} 24. Nxe6 {[%emt 0:00:09]} Kh7 {[%emt 0:03:39]} 25. c4 {[%emt 0:03:21]} Nc7 {[%emt 0:01:05]} 26. Qd3 {[%emt 0:03:55]} g6 {[%emt 0:02:42]} 27. Nfg5+ {[%emt 0:02:00]} Bxg5 {[%emt 0:01:37]} 28. Nxg5+ {[%emt 0:00:14]} Kg7 {[%emt 0:00:09]} 29. d5 {[%emt 0:00:18]} Qd7 {[%emt 0:01:07]} 30. Bc3+ {[%emt 0:00:06]} Kf8 {[%emt 0:00:48]} 31. Qd4 {[%emt 0:01:33]} Re5 {[%emt 0:01:12]} 32. f4 {[%emt 0:00:14]} 1-0

[Event "Najdorf Memorial-B 2022"]
[Site "Warsaw"]
[Date "2022.07.16"]
[Round "8.12"]
[White "Iwaszkiewicz, Krzysztof"]
[Black "Marczuk, Wojciech"]
[Result "0-1"]
[ECO "A45"]
[WhiteElo "1630"]
[BlackElo "1324"]
[Annotator "NA"]
[PlyCount "84"]
[EventDate "2022.07.09"]
[EventType "swiss"]
[EventCountry "POL"]
[SourceTitle "playchess.com"]
[Source "ChessBase"]
[SourceQuality "1"]
[TimeControl "40/5400+30:1800+30"]

1. d4 {[%emt 0:00:01]} Nf6 {[%emt 0:00:06]} 2. Bf4 {[%emt 0:00:03]} c6 {[%emt 0:00:19]} 3. e3 {[%emt 0:00:05]} Qb6 {[%emt 0:00:07]} 4. Qc1 {[%emt 0:01:06]} Nh5 {[%emt 0:00:29]} 5. Bg3 {[%emt 0:01:13]} Nxg3 {[%emt 0:00:08]} 6. hxg3 {[%emt 0:00:01]} g6 {[%emt 0:00:19]} 7. Nd2 {[%emt 0:00:25]} Bg7 {[%emt 0:00:18]} 8. Ngf3 {[%emt 0:00:46]} d6 {[%emt 0:00:37]} 9. c3 {[%emt 0:03:06]} Nd7 {[%emt 0:00:20]} 10. Qc2 {[%emt 0:01:08]} O-O {[%emt 0:04:03]} 11. Bd3 {[%emt 0:03:41]} e5 {[%emt 0:00:30]} 12. Nc4 {[%emt 0:04:15]} Qc7 {[%emt 0:01:18]} 13. dxe5 {[%emt 0:00:16]} Nxe5 {[%emt 0:01:18]} 14. Ncxe5 {[%emt 0:00:01]} dxe5 {[%emt 0:00:40]} 15. O-O-O {[%emt 0:05:14]} a5 {[%emt 0:01:34]} 16. Rh4 {[%emt 0:12:52]} Bf6 {[%emt 0:15:56]} 17. Rh6 {[%emt 0:00:16]} Kg7 {[%emt 0:02:13]} 18. Rdh1 {[%emt 0:02:22]} Rh8 {[%emt 0:00:25]} 19. Nd2 {[%emt 0:10:21]} Be6 {[%emt 0:06:14]} 20. f4 {[%emt 0:02:15]} Qb6 {[%emt 0:13:20]} 21. f5 {[%emt 0:16:39]} Bg5 {[%emt 0:02:19]} 22. R6h2 {[%emt 0:00:01]} Qxe3 {[%emt 0:15:04]} 23. fxe6 {[%emt 0:02:04]} Rad8 {[%emt 0:00:31]} 24. e7 {[%emt 0:20:21]} Bxe7 {[%emt 0:07:56]} 25. Bc4 {[%emt 0:00:06]} Bg5 {[%emt 0:00:44]} 26. Kb1 {[%emt 0:04:11]} Rxd2 {[%emt 0:01:01]} 27. Qb3 {[%emt 0:00:24]} Qe4+ {[%emt 0:02:52]} 28. Ka1 {[%emt 0:00:03]} Rxg2 {[%emt 0:00:43]} 29. Qxb7 {[%emt 0:00:44]} Qxc4 {[%emt 0:07:11]} 30. Rxg2 {[%emt 0:00:01]} Rd8 {[%emt 0:01:51]} 31. Qc7 {[%emt 0:03:06]} Qd5 {[%emt 0:00:25]} 32. Rgg1 {[%emt 0:00:14]} e4 {[%emt 0:00:44]} 33. Re1 {[%emt 0:01:33]} e3 {[%emt 0:00:22]} 34. a3 {[%emt 0:00:29]} e2 {[%emt 0:01:23]} 35. Rhg1 {[%emt 0:01:28]} Be3 {[%emt 0:04:46]} 36. Rg2 {[%emt 0:00:29]} Qxg2 {[%emt 0:04:30]} 37. Qe5+ {[%emt 0:00:06]} Kg8 {[%emt 0:00:51]} 38. Qxe3 {[%emt 0:00:15]} Rd1+ {[%emt 0:00:26]} 39. Ka2 {[%emt 0:00:03]} Qd5+ {[%emt 0:00:59]} 40. b3 {[%emt 0:00:00]} Qd2+ {[%emt 0:00:00]} 41. Qxd2 {[%emt 0:00:18]} Rxd2+ {[%emt 0:00:50]} 42. Kb1 {[%emt 0:00:02]} Rd1+ {[%emt 0:00:07]} 0-1

[Event "Najdorf Memorial-B 2022"]
[Site "Warsaw"]
[Date "2022.07.16"]
[Round "8.13"]
[White "Jaroszuk, Marcin"]
[Black "Leszczewicz, Karol"]
[Result "0-1"]
[ECO "A03"]
[WhiteElo "1476"]
[BlackElo "1519"]
[Annotator "NA"]
[PlyCount "116"]
[EventDate "2022.07.09"]
[EventType "swiss"]
[EventCountry "POL"]
[SourceTitle "playchess.com"]
[Source "ChessBase"]
[SourceQuality "1"]
[TimeControl "40/5400+30:1800+30"]

1. f4 {[%emt 0:00:14]} d5 {[%emt 0:00:13]} 2. Nf3 {[%emt 0:00:09]} Nf6 {[%emt 0:00:06]} 3. e3 {[%emt 0:00:07]} g6 {[%emt 0:00:09]} 4. Be2 {[%emt 0:00:08]} Bg7 {[%emt 0:00:06]} 5. O-O {[%emt 0:00:09]} O-O {[%emt 0:00:04]} 6. d3 {[%emt 0:00:12]} c5 {[%emt 0:00:11]} 7. Nc3 {[%emt 0:00:13]} Nc6 {[%emt 0:10:21]} 8. Ne5 {[%emt 0:00:27]} Nxe5 {[%emt 0:00:28]} 9. fxe5 {[%emt 0:00:08]} Ne8 {[%emt 0:00:04]} 10. d4 {[%emt 0:00:49]} cxd4 {[%emt 0:00:11]} 11. exd4 {[%emt 0:00:09]} f6 {[%emt 0:05:36]} 12. exf6 {[%emt 0:08:06]} exf6 {[%emt 0:01:23]} 13. Bf3 {[%emt 0:01:31]} Be6 {[%emt 0:01:04]} 14. Re1 {[%emt 0:09:47]} Bf7 {[%emt 0:00:55]} 15. Ne2 {[%emt 0:00:39]} f5 {[%emt 0:02:12]} 16. Nf4 Nc7 {[%emt 0:00:55]} 17. c3 {[%emt 0:09:09]} Re8 {[%emt 0:01:09]} 18. Nd3 {[%emt 0:04:45]} Rxe1+ {[%emt 0:16:12]} 19. Qxe1 {[%emt 0:00:33]} Nb5 {[%emt 0:01:47]} 20. Ne5 {[%emt 0:06:31]} Qe7 {[%emt 0:07:53]} 21. Bf4 {[%emt 0:06:39]} Bxe5 {[%emt 0:06:11]} 22. Qxe5 {[%emt 0:01:42]} Qxe5 {[%emt 0:00:46]} 23. Bxe5 {[%emt 0:00:19]} Rd8 24. Re1 {[%emt 0:08:20]} Rd7 {[%emt 0:02:50]} 25. a4 {[%emt 0:08:11]} Nc7 {[%emt 0:00:08]} 26. Bxc7 {[%emt 0:01:21]} Rxc7 {[%emt 0:00:02]} 27. a5 {[%emt 0:03:33]} Kf8 {[%emt 0:00:54]} 28. Kf2 {[%emt 0:05:13]} Re7 {[%emt 0:00:35]} 29. c4 {[%emt 0:05:55]} Rxe1 {[%emt 0:00:21]} 30. Kxe1 {[%emt 0:00:06]} Ke7 {[%emt 0:00:11]} 31. c5 {[%emt 0:03:54]} a6 {[%emt 0:06:39]} 32. h4 {[%emt 0:00:30]} h6 {[%emt 0:02:54]} 33. Kd2 {[%emt 0:01:21]} f4 {[%emt 0:01:55]} 34. Be2 {[%emt 0:07:45]} Kd7 {[%emt 0:00:23]} 35. b4 {[%emt 0:00:30]} Kc6 {[%emt 0:00:30]} 36. Ke1 {[%emt 0:05:14]} g5 {[%emt 0:01:04]} 37. hxg5 {[%emt 0:00:30]} hxg5 {[%emt 0:00:02]} 38. Kf2 {[%emt 0:03:49]} Bg6 {[%emt 0:05:00]} 39. Bg4 {[%emt 0:00:00]} Be4 {[%emt 0:00:00]} 40. Be6 {[%emt 0:00:00]} Kb5 {[%emt 0:00:00]} 41. Bc8 {[%emt 0:07:43]} Kxb4 {[%emt 0:02:13]} 42. Bxb7 {[%emt 0:02:08]} Kxa5 {[%emt 0:06:27]} 43. Bc8 {[%emt 0:03:07]} Bg6 {[%emt 0:00:44]} 44. Be6 {[%emt 0:00:36]} Be4 {[%emt 0:00:34]} 45. Bd7 {[%emt 0:01:50]} Bd3 {[%emt 0:05:17]} 46. Bc6 {[%emt 0:07:34]} Bc4 {[%emt 0:00:07]} 47. Kf3 {[%emt 0:02:55]} Kb4 {[%emt 0:00:26]} 48. Bb7 {[%emt 0:02:52]} Kb5 49. Kg4 {[%emt 0:00:18]} a5 {[%emt 0:00:44]} 50. Bc8 {[%emt 0:02:09]} Kc6 51. Bf5 a4 {[%emt 0:01:22]} 52. Kxg5 {[%emt 0:01:14]} a3 {[%emt 0:00:20]} 53. Bb1 {[%emt 0:04:47]} Bf1 {[%emt 0:00:00]} 54. Kxf4 {[%emt 0:00:51]} Bxg2 {[%emt 0:00:16]} 55. Ba2 {[%emt 0:00:30]} Bf1 {[%emt 0:00:17]} 56. Ke5 {[%emt 0:00:45]} Bc4 {[%emt 0:00:05]} 57. Bxc4 dxc4 58. d5+ {[%emt 0:00:52]} Kxc5 {[%emt 0:00:46]} 0-1

[Event "Najdorf Memorial-B 2022"]
[Site "Warsaw"]
[Date "2022.07.16"]
[Round "8.14"]
[White "Grzelak, Piotr"]
[Black "Jarmolowski, Tadeusz"]
[Result "1-0"]
[ECO "A45"]
[WhiteElo "1684"]
[BlackElo "1482"]
[Annotator "NA"]
[PlyCount "71"]
[EventDate "2022.07.09"]
[EventType "swiss"]
[EventCountry "POL"]
[SourceTitle "playchess.com"]
[Source "ChessBase"]
[SourceQuality "1"]
[TimeControl "40/5400+30:1800+30"]

1. d4 {[%emt 0:00:03]} Nf6 {[%emt 0:01:00]} 2. Bf4 {[%emt 0:00:26]} c5 {[%emt 0:00:15]} 3. e3 {[%emt 0:00:05]} cxd4 {[%emt 0:00:38]} 4. exd4 {[%emt 0:00:06]} Qb6 {[%emt 0:00:29]} 5. Nc3 {[%emt 0:05:25]} d5 {[%emt 0:01:03]} 6. Nb5 {[%emt 0:00:36]} Na6 {[%emt 0:00:36]} 7. c3 {[%emt 0:00:11]} Bd7 {[%emt 0:02:52]} 8. a4 {[%emt 0:00:16]} Rc8 {[%emt 0:02:57]} 9. Nf3 {[%emt 0:20:05]} Bg4 {[%emt 0:07:53]} 10. Qe2 {[%emt 0:11:24]} e6 {[%emt 0:00:46]} 11. a5 {[%emt 0:01:13]} Qd8 {[%emt 0:06:01]} 12. Nxa7 {[%emt 0:00:25]} Ra8 {[%emt 0:00:36]} 13. Nb5 {[%emt 0:00:21]} Be7 {[%emt 0:00:57]} 14. h3 {[%emt 0:01:45]} Bh5 {[%emt 0:00:28]} 15. g4 {[%emt 0:01:36]} Bg6 {[%emt 0:00:12]} 16. Ne5 {[%emt 0:00:55]} O-O {[%emt 0:03:59]} 17. Nxg6 {[%emt 0:04:49]} hxg6 {[%emt 0:02:19]} 18. Qe3 {[%emt 0:07:30]} Qd7 {[%emt 0:03:23]} 19. Bd3 {[%emt 0:01:15]} Ne4 {[%emt 0:02:58]} 20. O-O {[%emt 0:01:34]} g5 {[%emt 0:01:50]} 21. Bh2 {[%emt 0:11:33]} f5 {[%emt 0:00:54]} 22. Be5 {[%emt 0:03:11]} f4 {[%emt 0:04:34]} 23. Qe2 {[%emt 0:00:15]} Bf6 {[%emt 0:05:36]} 24. Bxe4 {[%emt 0:03:39]} dxe4 {[%emt 0:03:19]} 25. Nd6 {[%emt 0:00:38]} Bxe5 {[%emt 0:01:00]} 26. dxe5 {[%emt 0:00:09]} Nc5 {[%emt 0:02:13]} 27. Nxe4 {[%emt 0:00:25]} Qd5 {[%emt 0:01:28]} 28. Nxg5 {[%emt 0:06:12]} g6 {[%emt 0:01:51]} 29. b4 {[%emt 0:00:51]} Nd3 {[%emt 0:01:24]} 30. Rad1 {[%emt 0:01:02]} Rad8 {[%emt 0:00:30]} 31. Nxe6 {[%emt 0:01:39]} Qxe6 {[%emt 0:00:15]} 32. Rxd3 {[%emt 0:00:10]} Rxd3 {[%emt 0:01:20]} 33. Qxd3 {[%emt 0:00:02]} Kg7 {[%emt 0:00:19]} 34. Rd1 {[%emt 0:01:58]} Rf7 {[%emt 0:00:27]} 35. Qd5 {[%emt 0:00:22]} Qe7 {[%emt 0:00:40]} 36. e6 1-0